bitfinex/quotes_BTCUSD_20220201
["timestamp","ask_amount","ask_price","bid_price","bid_amount"]
[1643735345174,0.03972,39114.0,39111.0,0.001657]
[1643735345774,0.063948,39115.0,39112.0,0.12269727]
[1643735345975,0.063948,39115.0,39111.0,0.001657]
[1643735345976,0.03972,39114.0,39111.0,0.001657]
[1643735346220,0.03972,39114.0,39109.0,0.4975]
[1643735346221,0.167624,39114.0,39109.0,0.4975]
[1643735346422,0.03972,39111.0,39109.0,0.4975]
[1643735346822,0.9545,39110.0,39109.0,0.4975]
[1643735347224,1.0545,39110.0,39109.0,0.4975]
[1643735347623,1.31584303,39110.0,39109.0,0.4975]
[1643735348224,1.41584303,39110.0,39108.0,0.00165709]
[1643735348424,1.603695,39109.0,39108.0,0.00165709]
[1643735348623,1.603695,39109.0,39093.0,1.5617]
[1643735348624,0.25656887,39100.0,39093.0,0.839681]
[1643735348823,0.063978,39099.0,39093.0,0.7757]
[1643735349024,0.103698,39099.0,39090.0,0.5239]
[1643735349225,0.063978,39099.0,39098.0,0.12864731]
[1643735349426,0.103698,39099.0,39095.0,0.127947]
[1643735349726,0.068478,39099.0,39095.0,0.127947]
[1643735349982,0.068478,39099.0,39095.0,0.12960444]
[1643735350378,0.03972,39098.0,39095.0,0.12960444]
[1643735350579,0.03972,39096.0,39095.0,0.00165744]
[1643735350779,1.24422,39096.0,39095.0,0.00165744]
[1643735350976,1.24422,39096.0,39092.0,0.02130684]
[1643735351176,0.227994,39095.0,39094.0,0.00165748]
[1643735351383,0.34649144,39095.0,39094.0,0.00165748]
[1643735351578,1.4,39094.0,39092.0,0.02130684]
[1643735351777,0.8818382,39095.0,39092.0,0.02130684]
[1643735351778,1.85272142,39093.0,39092.0,0.02130684]
[1643735351976,1.4,39092.0,39090.0,0.5239]
[1643735352176,0.24473773,39084.0,39077.0,0.11725532]
[1643735352377,0.2990604,39091.0,39077.0,0.11725532]
[1643735352378,0.04422,39083.0,39077.0,0.11725532]
[1643735352579,0.0045,39082.0,39077.0,0.11725532]
[1643735352777,0.03972,39081.0,39077.0,0.11725532]
[1643735352976,0.0045,39080.0,39078.0,0.128005]
[1643735353578,0.068508,39080.0,39078.0,0.128005]
[1643735353823,0.108228,39080.0,39077.0,0.064002]
[1643735354025,0.108228,39080.0,39072.0,0.568617]
[1643735354225,0.108228,39080.0,39072.0,0.4406]
[1643735354226,0.03972,39074.0,39072.0,0.4406]
[1643735355230,0.0045,39073.0,39072.0,0.4406]
[1643735357482,0.0045,39073.0,39072.0,1.17455325]
[1643735357876,0.0045,39073.0,39072.0,0.4406]
[1643735358873,0.0045,39073.0,39072.0,0.87337636]
[1643735359077,0.064015,39078.0,39073.0,1.2]
[1643735359278,0.17715184,39082.0,39077.0,0.12130355]
[1643735359476,0.03972,39082.0,39077.0,0.12130355]
[1643735359675,0.17265184,39090.0,39077.0,0.12130355]
[1643735359676,0.03972,39078.0,39077.0,0.12130355]
[1643735359876,0.064005,39083.0,39077.0,0.12130355]
[1643735360075,0.03972,39082.0,39078.0,0.08941553]
[1643735360874,0.03972,39085.0,39078.0,0.09100492]
[1643735361231,0.17265184,39094.0,39086.0,0.89170079]
[1643735361232,0.03972,39089.0,39086.0,0.89170079]
[1643735361445,0.03972,39089.0,39086.0,0.75]
[1643735361630,0.003373,39089.0,39079.0,0.2649036]
[1643735361829,0.063993,39091.0,39079.0,0.2649036]
[1643735362031,0.063993,39091.0,39086.0,0.00158918]
[1643735362233,0.127988,39091.0,39086.0,0.00158918]
[1643735362433,0.0042,39090.0,39086.0,0.00158918]
[1643735363034,0.0042,39090.0,39079.0,0.02014057]
[1643735363231,0.064011,39088.0,39086.0,0.00165431]
[1643735363434,1.44835389,39087.0,39086.0,0.00165431]
[1643735363934,0.48501673,39087.0,39086.0,0.00165431]
[1643735364333,0.48501673,39087.0,39086.0,0.13359905]
[1643735364334,0.068211,39087.0,39086.0,0.13359905]
[1643735364537,0.128022,39089.0,39086.0,0.13359905]
[1643735364538,0.010249,39090.0,39086.0,0.13359905]
[1643735364736,0.01335353,39092.0,39086.0,0.11949905]
[1643735364980,0.01335353,39092.0,39085.0,0.00165435]
[1643735365373,0.01335353,39092.0,39086.0,0.09685042]
[1643735365576,0.01335353,39092.0,39083.0,0.26735918]
[1643735365776,0.01335353,39092.0,39087.0,0.0016543]
[1643735366174,0.1,39092.0,39087.0,0.0016543]
[1643735366375,0.0042,39091.0,39087.0,0.0016543]
[1643735366577,0.08256236,39090.0,39087.0,0.0016543]
[1643735366777,0.08256236,39090.0,39076.0,0.35423934]
[1643735366778,0.064009,39086.0,39076.0,0.08688016]
[1643735367076,0.0042,39085.0,39081.0,0.00661812]
[1643735367877,0.0042,39085.0,39076.0,0.23082864]
[1643735368079,0.0042,39085.0,39081.0,0.00165445]
[1643735368833,0.064009,39086.0,39081.0,0.00165445]
[1643735369037,0.06426,39091.0,39079.0,0.064002]
[1643735369038,0.063995,39090.0,39079.0,0.064002]
[1643735369235,0.00026,39091.0,39082.0,0.00165443]
[1643735369434,0.01335353,39089.0,39087.0,0.12008403]
[1643735369634,0.01335353,39089.0,39082.0,0.00165443]
[1643735369635,0.01335353,39089.0,39083.0,0.1996926]
[1643735369934,0.01335353,39089.0,39086.0,0.09570943]
[1643735370435,0.00026,39091.0,39086.0,0.09736375]
[1643735370835,0.00026,39091.0,39086.0,0.00165432]
[1643735371235,0.75,39090.0,39081.0,0.24672544]
[1643735371436,0.8,39090.0,39080.0,0.127986]
[1643735371637,0.0187223,39084.0,39071.0,0.01]
[1643735372137,0.22921641,39080.0,39073.0,0.128007]
[1643735372335,0.334063,39080.0,39073.0,0.128007]
[1643735372807,0.334063,39080.0,39071.0,0.01]
[1643735372808,0.064013,39079.0,39071.0,0.01]
[1643735373011,0.42997765,39079.0,39071.0,0.01]
[1643735373208,0.164013,39079.0,39071.0,0.01]
[1643735373905,0.164013,39079.0,39071.0,0.15019581]
[1643735374306,0.164013,39079.0,39071.0,0.01]
[1643735374709,0.0042,39078.0,39071.0,0.01]
[1643735375307,0.068226,39078.0,39073.0,0.0016526]
[1643735375709,0.068226,39078.0,39073.0,0.13502789]
[1643735375710,0.128054,39077.0,39073.0,0.13502789]
[1643735375907,0.192074,39077.0,39073.0,0.13502789]
[1643735376108,0.242074,39077.0,39073.0,0.13502789]
[1643735376325,0.342074,39077.0,39073.0,0.13337529]
[1643735376526,0.342074,39077.0,39073.0,0.13502789]
[1643735376726,0.06402,39077.0,39076.0,0.10312539]
[1643735376927,0.064011,39081.0,39076.0,0.10312539]
[1643735377126,0.1,39085.0,39076.0,0.10312539]
[1643735377526,0.1,39088.0,39076.0,0.10312539]
[1643735377726,0.27613225,39086.0,39079.0,0.00165245]
[1643735377925,0.27613225,39086.0,39079.0,0.14230932]
[1643735378125,0.064004,39087.0,39079.0,0.14230932]
[1643735378126,0.064004,39087.0,39079.0,0.00165245]
[1643735378527,0.00026,39091.0,39082.0,0.09245447]
[1643735378926,0.063998,39089.0,39082.0,0.09245447]
[1643735379131,0.063998,39089.0,39086.0,0.2192944]
[1643735379327,0.00026,39091.0,39087.0,0.26224682]
[1643735379529,0.00026,39091.0,39087.0,0.4595858]
[1643735379726,0.00026,39091.0,39087.0,0.19733898]
[1643735379981,0.00026,39091.0,39085.0,0.0471]
[1643735379982,0.00026,39091.0,39088.0,0.11269386]
[1643735380174,0.00026,39091.0,39087.0,0.127963]
[1643735381578,0.00026,39091.0,39087.0,0.2618159]
[1643735382576,0.00026,39091.0,39087.0,0.2340659]
[1643735383177,0.00026,39091.0,39087.0,0.100213]
[1643735383825,0.00026,39091.0,39087.0,0.095213]
[1643735384727,0.00026,39091.0,39082.0,0.127978]
[1643735384923,0.063993,39089.0,39084.0,0.00165234]
[1643735385724,0.063993,39089.0,39080.0,0.4975]
[1643735385725,1.05,39086.0,39080.0,0.4975]
[1643735385926,1.05,39086.0,39077.0,0.024962]
[1643735385927,0.064008,39085.0,39077.0,0.024962]
[1643735386827,0.0779924,39080.0,39077.0,0.0246127]
[1643735387228,0.1920064,39080.0,39077.0,0.0246127]
[1643735387494,0.1920064,39080.0,39077.0,0.02568843]
[1643735387980,0.064014,39079.0,39077.0,0.02568843]
[1643735388182,0.05,39078.0,39077.0,0.02568843]
[1643735388379,0.064014,39079.0,39077.0,0.0246127]
[1643735388581,0.164014,39079.0,39077.0,0.0246127]
[1643735388982,0.73788575,39078.0,39077.0,0.0246127]
[1643735389282,0.5,39078.0,39077.0,0.0246127]
[1643735389883,0.064014,39079.0,39077.0,0.0246127]
[1643735389884,0.15198625,39079.0,39077.0,0.0246127]
[1643735390084,0.05,39078.0,39077.0,0.0246127]
[1643735390284,1.81214545,39078.0,39077.0,0.0246127]
[1643735390682,1.91214545,39078.0,39077.0,0.0246127]
[1643735391085,0.78452946,39078.0,39077.0,0.0246127]
[1643735391327,0.50422401,39078.0,39077.0,0.0246127]
[1643735391524,0.76930949,39078.0,39077.0,0.0246127]
[1643735391924,0.50422401,39078.0,39077.0,0.0246127]
[1643735392122,1.85422401,39078.0,39077.0,0.0246127]
[1643735392324,0.50422401,39078.0,39077.0,0.0246127]
[1643735392922,0.23184,39078.0,39077.0,0.0246127]
[1643735393129,0.12804,39078.0,39077.0,0.0246127]
[1643735393324,0.074272,39079.0,39077.0,0.0246127]
[1643735394626,0.054272,39079.0,39077.0,0.0246127]
[1643735395280,1.22116288,39078.0,39077.0,0.0246127]
[1643735395481,0.39920988,39078.0,39077.0,0.0246127]
[1643735395678,0.7703272,39078.0,39077.0,0.0246127]
[1643735395879,0.96943185,39078.0,39077.0,0.0246127]
[1643735396079,0.41994165,39078.0,39077.0,0.0246127]
[1643735396680,0.320837,39078.0,39077.0,0.0246127]
[1643735397081,0.509827,39078.0,39077.0,0.0246127]
[1643735397278,0.609827,39078.0,39077.0,0.0246127]
[1643735398078,1.659827,39078.0,39077.0,0.0246127]
[1643735398279,0.68577553,39078.0,39077.0,0.0246127]
[1643735399029,1.58577553,39078.0,39077.0,0.0246127]
[1643735399227,0.581847,39078.0,39077.0,0.0246127]
[1643735399429,0.431847,39078.0,39077.0,0.0246127]
[1643735400228,0.131847,39078.0,39077.0,0.0246127]
[1643735400431,0.064023,39079.0,39077.0,0.0246127]
[1643735400630,0.23669165,39080.0,39077.0,0.0246127]
[1643735400631,0.064014,39080.0,39077.0,0.0246127]
[1643735401431,0.06372368,39080.0,39077.0,0.22466479]
[1643735401636,0.06372368,39080.0,39077.0,0.0246127]
[1643735401830,0.06372368,39080.0,39077.0,0.02626182]
[1643735401831,0.12773468,39080.0,39077.0,0.02626182]
[1643735402873,0.12773468,39080.0,39077.0,0.0246127]
[1643735403073,0.06372368,39080.0,39077.0,0.02626182]
[1643735403672,0.06372368,39080.0,39078.0,0.24252885]
[1643735403874,0.06372368,39080.0,39077.0,0.02626182]
[1643735404075,0.06372368,39080.0,39077.0,0.0246127]
[1643735404277,0.06372368,39080.0,39077.0,0.02626181]
[1643735405277,0.06372368,39080.0,39077.0,0.0246127]
[1643735405477,0.06372368,39080.0,39077.0,0.02626182]
[1643735406232,0.063999,39085.0,39079.0,0.08942563]
[1643735406432,0.058999,39085.0,39080.0,0.28825703]
[1643735406631,0.058999,39085.0,39080.0,0.18825703]
[1643735407032,0.00115061,39087.0,39080.0,0.25225103]
[1643735407233,0.00115061,39087.0,39084.0,0.18513966]
[1643735407633,0.00026,39091.0,39084.0,0.18513966]
[1643735407835,0.00026,39091.0,39085.0,0.09893118]
[1643735408031,0.0011508,39087.0,39085.0,0.09893118]
[1643735408231,0.0011508,39087.0,39086.0,0.13383395]
[1643735408932,0.064249,39091.0,39086.0,0.13383395]
[1643735409133,0.0011508,39088.0,39086.0,0.13383395]
[1643735409833,0.0011508,39088.0,39087.0,0.74348833]
[1643735410082,0.00026,39091.0,39087.0,0.74348833]
[1643735410083,0.00026,39091.0,39087.0,0.73148954]
[1643735410284,0.0011508,39089.0,39087.0,0.73148954]
[1643735410485,0.0011508,39089.0,39087.0,0.5]
[1643735411082,0.063988,39094.0,39089.0,0.6]
[1643735411083,0.063988,39092.0,39089.0,0.6]
[1643735411284,0.127964,39099.0,39090.0,0.15872177]
[1643735411285,0.227964,39099.0,39090.0,0.15872177]
[1643735411482,0.227964,39099.0,39090.0,0.40909686]
[1643735411685,0.127964,39099.0,39090.0,0.15872177]
[1643735411886,0.127964,39099.0,39096.0,0.08153015]
[1643735412284,0.063977,39097.0,39096.0,0.08153015]
[1643735412685,0.063977,39097.0,39090.0,0.15872177]
[1643735412884,0.063987,39095.0,39088.0,0.127954]
[1643735413284,0.27360203,39094.0,39088.0,0.25493795]
[1643735413485,0.05,39094.0,39088.0,0.25493795]
[1643735413923,0.127975,39095.0,39089.0,0.24944667]
[1643735414123,0.127975,39095.0,39088.0,0.127954]
[1643735414528,0.063994,39092.0,39085.0,0.01882561]
[1643735414724,0.191993,39092.0,39085.0,0.01882561]
[1643735415125,0.24019195,39088.0,39085.0,0.01882561]
[1643735415327,0.064002,39088.0,39085.0,0.01882561]
[1643735415726,0.064002,39088.0,39084.0,0.00165043]
[1643735416130,0.064002,39088.0,39082.0,0.4975]
[1643735416131,0.114002,39088.0,39082.0,0.4975]
[1643735416331,0.114002,39088.0,39084.0,0.00165035]
[1643735416929,0.61117282,39085.0,39084.0,0.00165035]
[1643735417233,0.81117282,39085.0,39082.0,0.4975]
[1643735417480,0.164004,39084.0,39083.0,0.0016504]
[1643735417775,1.2,39084.0,39083.0,0.0016504]
[1643735417974,1.37267765,39084.0,39083.0,0.0016504]
[1643735418177,0.27267765,39084.0,39083.0,0.0016504]
[1643735418473,0.27267765,39084.0,39082.0,0.4975]
[1643735418676,0.1900299,39084.0,39082.0,0.49915042]
[1643735419674,0.1900299,39084.0,39082.0,0.4975]
[1643735419877,0.1,39084.0,39082.0,0.4975]
[1643735420274,0.814012,39083.0,39082.0,0.4975]
[1643735420674,1.014012,39083.0,39082.0,0.4975]
[1643735421074,0.43668965,39083.0,39082.0,0.4975]
[1643735421524,0.064012,39083.0,39082.0,0.4975]
[1643735422723,0.714012,39083.0,39082.0,0.4975]
[1643735422924,0.94207166,39083.0,39082.0,0.4975]
[1643735423928,0.29207166,39083.0,39082.0,0.4975]
[1643735424324,0.064012,39083.0,39082.0,0.4975]
[1643735424726,1.464012,39083.0,39082.0,0.4975]
[1643735424979,1.63668965,39083.0,39082.0,0.4975]
[1643735425178,1.73668965,39083.0,39082.0,0.4975]
[1643735425576,2.0860363,39083.0,39082.0,0.4975]
[1643735425782,2.0860363,39083.0,39081.0,0.00165045]
[1643735425783,2.09347686,39083.0,39081.0,0.00165045]
[1643735425980,2.09347686,39083.0,39069.0,0.0011]
[1643735425981,0.064037,39080.0,39071.0,0.0078]
[1643735426182,1.528073,39081.0,39066.0,0.23704465]
[1643735426183,0.0533,39075.0,39066.0,0.23704465]
[1643735426378,0.0533,39068.0,39063.0,0.384]
[1643735426681,0.5096741,39067.0,39063.0,0.384]
[1643735426877,0.5096741,39067.0,39051.0,0.00013044]
[1643735426878,1.4,39066.0,39052.0,0.001]
[1643735427076,0.06406,39063.0,39054.0,0.0011]
[1643735427278,1.4,39061.0,39045.0,0.3369]
[1643735427478,0.26573636,39060.0,39044.0,0.02903]
[1643735427676,0.63841401,39060.0,39044.0,0.02903]
[1643735427880,0.2206546,39046.0,39044.0,0.02903]
[1643735428080,0.2244546,39046.0,39044.0,0.02903]
[1643735428281,0.1038,39046.0,39044.0,0.02827915]
[1643735428725,0.1538,39046.0,39044.0,0.02827915]
[1643735428924,0.44231223,39045.0,39044.0,0.02827915]
[1643735429127,0.44611223,39045.0,39044.0,0.02827915]
[1643735429327,0.78863368,39045.0,39044.0,0.02403]
[1643735429529,0.78863368,39045.0,39043.0,2.33e-06]
[1643735429530,1.4,39044.0,39043.0,2.33e-06]
[1643735429728,1.5038,39044.0,39043.0,2.33e-06]
[1643735429928,1.88237283,39044.0,39043.0,2.33e-06]
[1643735430531,1.88237283,39044.0,39036.0,0.0011]
[1643735430730,1.94646304,39044.0,39036.0,0.0011]
[1643735430928,0.17267765,39043.0,39036.0,0.0011]
[1643735431127,0.17647765,39043.0,39036.0,0.0011]
[1643735431328,0.0038,39043.0,39036.0,0.0011]
[1643735431526,0.0038,39043.0,39025.0,0.12816]
[1643735431731,0.05,39041.0,39030.0,0.06283138]
[1643735431929,0.064084,39038.0,39030.0,0.06283138]
[1643735432131,0.0038,39037.0,39028.0,0.48408]
[1643735432330,0.0038,39037.0,39028.0,0.42]
[1643735432582,0.0038,39037.0,39028.0,0.5665531]
[1643735432780,0.0538,39037.0,39028.0,0.5665531]
[1643735432978,0.0538,39037.0,39031.0,0.00105583]
[1643735432979,0.067883,39037.0,39031.0,0.00105583]
[1643735433284,0.067883,39037.0,39033.0,0.27120178]
[1643735433479,0.0038,39037.0,39033.0,0.27120178]
[1643735433679,0.0038,39037.0,39033.0,0.37581495]
[1643735433879,0.0038,39037.0,39031.0,0.00105583]
[1643735434082,0.0038,39037.0,39028.0,0.5665531]
[1643735434283,0.0038,39037.0,39033.0,0.00164009]
[1643735434880,0.53886031,39034.0,39033.0,0.00164009]
[1643735435079,0.59266031,39034.0,39033.0,0.00164009]
[1643735435279,0.59266031,39034.0,39028.0,0.42]
[1643735435280,0.09704886,39029.0,39028.0,0.42]
[1643735435478,0.69266031,39034.0,39028.0,0.42]
[1643735435479,0.1,39033.0,39032.0,0.30164013]
[1643735435680,0.0038,39033.0,39032.0,0.00164013]
[1643735436235,0.0038,39033.0,39028.0,0.42]
[1643735436434,0.0038,39033.0,39028.0,0.41564013]
[1643735436633,0.09615395,39030.0,39028.0,0.41564013]
[1643735436833,0.0038,39030.0,39028.0,0.41564013]
[1643735437634,0.0038,39030.0,39028.0,0.38364013]
[1643735437836,0.0038,39030.0,39028.0,0.25400298]
[1643735438035,0.26107079,39030.0,39028.0,0.25400298]
[1643735438235,0.0538,39030.0,39028.0,0.25400298]
[1643735438436,0.0038,39030.0,39028.0,0.25400298]
[1643735438640,0.4948623,39029.0,39028.0,0.25400298]
[1643735438939,0.6486623,39029.0,39028.0,0.25400298]
[1643735439537,1.6486623,39029.0,39028.0,0.25400298]
[1643735439982,1.82133995,39029.0,39028.0,0.25400298]
[1643735440977,1.84593995,39029.0,39028.0,0.25400298]
[1643735441381,1.84593995,39029.0,39021.0,0.0102176]
[1643735441382,0.128224,39026.0,39021.0,0.0102176]
[1643735441580,0.0034,39025.0,39021.0,0.0102176]
[1643735441778,0.0034,39025.0,39021.0,0.0004428]
[1643735441982,0.0034,39025.0,39021.0,0.0017408]
[1643735441983,1.635249,39024.0,39021.0,0.0017408]
[1643735442180,0.0034,39022.0,39021.0,0.0017408]
[1643735442380,0.0068,39022.0,39021.0,0.0017408]
[1643735442579,0.0068,39022.0,39017.0,0.27698726]
[1643735442780,0.064131,39021.0,39017.0,0.27698726]
[1643735442979,0.0034,39020.0,39017.0,0.27698726]
[1643735443180,1.0,39018.0,39017.0,0.27698726]
[1643735443381,0.0034,39018.0,39017.0,0.27698726]
[1643735443580,0.1034,39018.0,39017.0,0.27698726]
[1643735443828,0.1534,39018.0,39017.0,0.27698726]
[1643735444225,0.43927673,39018.0,39017.0,0.27698726]
[1643735444427,1.2262941,39018.0,39017.0,0.27698726]
[1643735444625,0.94041737,39018.0,39017.0,0.27698726]
[1643735444825,0.43809502,39018.0,39017.0,0.27698726]
[1643735445025,0.26541737,39018.0,39017.0,0.27698726]
[1643735445324,0.0784,39018.0,39017.0,0.27698726]
[1643735445525,1.1284,39018.0,39017.0,0.27698726]
[1643735445725,1.3684007,39018.0,39017.0,0.27698726]
[1643735445926,1.8184007,39018.0,39017.0,0.14729868]
[1643735446128,1.99107835,39018.0,39017.0,0.14729868]
[1643735446332,1.4,39017.0,39016.0,0.00273032]
[1643735446630,1.67857375,39017.0,39016.0,0.00273032]
[1643735446927,0.064145,39015.0,39008.0,0.00652249]
[1643735447126,0.0034,39014.0,39008.0,0.00652249]
[1643735447326,0.128291,39013.0,39005.0,0.0011]
[1643735447601,1.4,39011.0,39001.0,0.0003]
[1643735447805,0.44108165,39010.0,39001.0,0.0003]
[1643735447996,0.16049675,39004.0,38999.0,0.0012323]
[1643735448201,0.0034,39003.0,38999.0,0.0012323]
[1643735448399,0.0034,39002.0,38999.0,3.23e-05]
[1643735448596,0.00744056,39003.0,38999.0,3.23e-05]
[1643735448795,0.0034,39001.0,38999.0,3.23e-05]
[1643735449003,1.64659792,39000.0,38999.0,4.6e-06]
[1643735449197,1.79999792,39000.0,38989.0,0.002]
[1643735449401,0.0034,38996.0,38989.0,0.002]
[1643735449598,0.0034,38995.0,38989.0,0.002]
[1643735449797,1.4,38994.0,38988.0,0.0003]
[1643735449996,0.17607765,38993.0,38988.0,0.0003]
[1643735450198,0.52528585,38993.0,38988.0,0.0003]
[1643735450400,0.80992333,38993.0,38988.0,0.0003]
[1643735450601,0.80992333,38993.0,38987.0,0.00038637]
[1643735450602,2.46395305,38991.0,38987.0,0.00038637]
[1643735450798,0.36283748,38990.0,38987.0,0.00038637]
[1643735450997,0.128371,38988.0,38977.0,0.00273903]
[1643735451225,1.678371,38988.0,38987.0,0.00162774]
[1643735451426,0.128366,38986.0,38981.0,0.00651195]
[1643735451632,0.0032,38985.0,38981.0,0.00651195]
[1643735451828,0.064181,38984.0,38981.0,0.00651195]
[1643735452027,0.0032,38984.0,38980.0,0.09852]
[1643735452227,0.15,38986.0,38981.0,0.27062748]
[1643735452427,0.15,38986.0,38980.0,0.09852]
[1643735452628,0.08036409,38982.0,38979.0,0.14776]
[1643735452833,0.08036409,38982.0,38975.0,0.1011]
[1643735452834,1.65963748,38981.0,38975.0,0.09064858]
[1643735453030,1.4032,38981.0,38975.0,0.09064858]
[1643735453227,0.27267765,38980.0,38975.0,0.09064858]
[1643735453428,0.0032,38979.0,38975.0,0.09064858]
[1643735453628,0.0032,38979.0,38976.0,0.15319983]
[1643735454528,0.0032,38979.0,38976.0,0.14186983]
[1643735454727,0.01335353,38990.0,38978.0,1.4]
[1643735455008,0.01335353,38990.0,38979.0,0.25963748]
[1643735455193,0.20589518,39001.0,38979.0,0.25963748]
[1643735455194,0.17267765,39000.0,38979.0,0.25963748]
[1643735455394,0.05,39001.0,38988.0,0.21393702]
[1643735455592,0.01394934,39003.0,38979.0,0.25963748]
[1643735455593,0.00059581,39003.0,38979.0,0.25963748]
[1643735455795,0.128309,39004.0,38997.0,0.08447489]
[1643735455995,0.00119214,39003.0,38998.0,0.11911821]
[1643735456594,0.00119214,39003.0,39000.0,0.2692892]
[1643735456794,0.00119214,39003.0,39000.0,0.43403472]
[1643735456998,0.01335353,39007.0,39006.0,0.13133037]
[1643735457395,0.01335353,39007.0,39001.0,0.3173172]
[1643735457594,0.01335353,39007.0,39001.0,0.24575825]
[1643735457994,0.01335353,39007.0,39006.0,1.08178424]
[1643735458195,0.114131,39015.0,39006.0,0.28178424]
[1643735458394,0.064131,39015.0,39014.0,0.0878121]
[1643735458595,0.064131,39015.0,38998.0,0.0215596]
[1643735458832,0.064131,39015.0,39000.0,0.20784105]
[1643735459033,0.064131,39015.0,39001.0,0.29107609]
[1643735459431,0.064131,39015.0,39001.0,0.57155983]
[1643735459633,0.00119235,39010.0,39005.0,0.08713127]
[1643735459831,0.00119235,39010.0,39004.0,0.12351722]
[1643735460030,0.00119235,39010.0,39000.0,0.20784105]
[1643735460330,0.00119235,39010.0,39006.0,0.18395272]
[1643735460531,0.23799235,39018.0,39007.0,1.2]
[1643735460933,0.23799235,39018.0,39004.0,0.02467198]
[1643735460934,0.2547684,39017.0,39004.0,0.02467198]
[1643735461132,0.23799235,39018.0,39009.0,0.14805024]
[1643735461532,0.10469901,39016.0,39005.0,0.01844849]
[1643735461831,0.064131,39014.0,39005.0,0.00844849]
[1643735462033,0.2547684,39013.0,39005.0,0.00844849]
[1643735462237,1.41,39006.0,39005.0,8.49e-06]
[1643735462484,0.064156,39003.0,38990.0,0.00013044]
[1643735462886,0.0032,39002.0,38985.0,0.26348643]
[1643735463086,0.0032,39002.0,38973.0,0.00013044]
[1643735463087,0.26540896,39002.0,38973.0,0.00013044]
[1643735463289,0.17275561,38997.0,38973.0,0.00013044]
[1643735463488,0.17275561,38997.0,38972.0,0.09062737]
[1643735463489,0.064182,38992.0,38972.0,0.09062737]
[1643735463686,0.064182,38992.0,38972.0,0.17010045]
[1643735463687,0.0032,38991.0,38972.0,0.17010045]
[1643735463885,0.0032,38991.0,38972.0,0.09062737]
[1643735464086,0.23431075,38986.0,38979.0,0.15175016]
[1643735464286,0.0032,38985.0,38981.0,0.00162491]
[1643735464689,0.067375,38985.0,38981.0,0.00162491]
[1643735465090,0.29086392,38984.0,38981.0,0.00162491]
[1643735465289,0.29086392,38984.0,38975.0,0.09064858]
[1643735465290,0.25474105,38978.0,38975.0,0.09064858]
[1643735465488,0.0032,38977.0,38975.0,0.0971492]
[1643735466532,0.0032,38977.0,38976.0,0.10366586]
[1643735467131,0.5532,38977.0,38976.0,0.10366586]
[1643735467332,0.6532,38977.0,38976.0,0.10366586]
[1643735467534,0.1032,38977.0,38975.0,0.09064858]
[1643735467733,0.1532,38977.0,38975.0,0.09064858]
[1643735467933,0.1532,38977.0,38975.0,0.0922696]
[1643735467934,0.1,38976.0,38975.0,0.0922696]
[1643735468132,1.15,38976.0,38975.0,0.0922696]
[1643735468735,1.23114618,38976.0,38975.0,0.0922696]
[1643735468936,1.23114618,38976.0,38975.0,0.04064858]
[1643735469134,1.76171789,38976.0,38975.0,0.04064858]
[1643735469741,1.75427733,38976.0,38975.0,0.13417858]
[1643735469996,1.57614618,38976.0,38975.0,0.03564858]
[1643735470400,1.4,38975.0,38974.0,0.00162105]
[1643735470597,1.4032,38975.0,38974.0,0.00162105]
[1643735470796,1.4032,38975.0,38972.0,0.0031]
[1643735470797,1.4,38974.0,38972.0,0.0031]
[1643735470996,1.4032,38973.0,38972.0,0.0031]
[1643735471197,1.5532,38973.0,38972.0,0.0031]
[1643735471400,1.5532,38973.0,38972.0,0.0001]
[1643735471599,1.56064056,38973.0,38972.0,0.0001]
[1643735471797,1.5532,38973.0,38972.0,0.0001]
[1643735472199,1.4,38972.0,38971.0,0.01]
[1643735472401,1.4,38972.0,38962.0,0.0011]
[1643735472402,1.79760461,38972.0,38962.0,0.0011]
[1643735472597,1.4,38970.0,38956.0,0.00020557]
[1643735472809,0.131665,38966.0,38956.0,0.00020557]
[1643735472999,0.131665,38966.0,38954.0,0.0206906]
[1643735473000,1.46743125,38965.0,38954.0,0.01899617]
[1643735473198,0.1,38964.0,38954.0,0.01899617]
[1643735473499,0.0032,38963.0,38954.0,0.22930426]
[1643735473928,0.0032,38963.0,38954.0,0.01899617]
[1643735474127,0.0532,38963.0,38954.0,0.01899617]
[1643735474329,0.0532,38963.0,38958.0,0.16544005]
[1643735474330,0.0032,38963.0,38958.0,0.16544005]
[1643735474527,0.0032,38963.0,38959.0,0.10307072]
[1643735474928,0.05,38970.0,38960.0,0.38191041]
[1643735475131,0.05,38970.0,38969.0,0.14292163]
[1643735475331,0.02164269,38975.0,38969.0,0.42]
[1643735475929,0.0032,38974.0,38969.0,0.42]
[1643735476328,0.0032,38974.0,38970.0,0.00162367]
[1643735476929,1.4,38973.0,38969.0,0.38662367]
[1643735477130,0.064217,38963.0,38962.0,0.00649598]
[1643735477328,0.064217,38963.0,38954.0,0.01899617]
[1643735477329,1.267417,38963.0,38954.0,0.01899617]
[1643735477579,1.317417,38963.0,38956.0,0.09442115]
[1643735477779,0.1,38962.0,38956.0,0.09442115]
[1643735477984,0.0032,38961.0,38954.0,0.01899617]
[1643735478182,0.25496663,38958.0,38954.0,0.01899617]
[1643735478382,0.2604268,38961.0,38954.0,0.01899617]
[1643735478383,0.128462,38959.0,38954.0,0.01899617]
[1643735478581,0.064229,38957.0,38954.0,0.01899617]
[1643735478781,0.0032,38956.0,38954.0,0.01899617]
[1643735478980,0.0032,38956.0,38955.0,0.08550391]
[1643735479182,0.3482,38956.0,38955.0,0.08550391]
[1643735479380,0.4482,38956.0,38954.0,0.01899617]
[1643735479680,0.1032,38955.0,38954.0,0.01899617]
[1643735480181,0.3585623,38955.0,38954.0,0.01899617]
[1643735480380,0.1032,38955.0,38954.0,0.01899617]
[1643735480779,0.1,38955.0,38954.0,0.01899617]
[1643735481632,0.003,38955.0,38954.0,0.00899617]
[1643735481833,0.01943057,38966.0,38955.0,0.46]
[1643735481834,0.128452,38961.0,38955.0,0.46]
[1643735482034,0.01943057,38966.0,38955.0,0.46]
[1643735482035,0.2546712,38960.0,38955.0,0.46]
[1643735482233,0.003,38959.0,38955.0,0.46]
[1643735482434,0.003,38958.0,38956.0,0.00162201]
[1643735482632,1.41764398,38957.0,38956.0,0.00162201]
[1643735482833,1.50271004,38957.0,38956.0,0.00162201]